bitfinex/quotes_BTCUSD_20240730
["timestamp","ask_amount","ask_price","bid_price","bid_amount"]
[1722311503575,1.84130319,66638.0,66637.0,0.002913]
[1722311504727,2.08140619,66638.0,66637.0,0.002913]
[1722311505130,2.15930619,66638.0,66637.0,0.002913]
[1722311505400,1.090558,66632.0,66631.0,0.0015542]
[1722311505593,1.7649272,66632.0,66631.0,0.0015542]
[1722311506396,1.78847193,66632.0,66631.0,0.0015542]
[1722311506949,1.77847193,66632.0,66631.0,0.0015542]
[1722311507346,1.78847193,66632.0,66631.0,0.0025542]
[1722311507566,1.79447193,66632.0,66631.0,0.002]
[1722311507718,1.78144415,66632.0,66631.0,0.002]
[1722311508131,1.75789942,66632.0,66631.0,0.002]
[1722311508427,1.76789942,66632.0,66631.0,0.002]
[1722311508966,1.75789942,66632.0,66631.0,0.002]
[1722311509269,1.78147315,66632.0,66631.0,0.002]
[1722311509671,1.76789942,66632.0,66631.0,0.002]
[1722311509997,1.78147261,66632.0,66631.0,0.002]
[1722311510147,1.76789942,66632.0,66631.0,0.002]
[1722311510528,1.78142123,66632.0,66631.0,0.002]
[1722311510733,1.76789942,66632.0,66631.0,0.002]
[1722311511050,1.78142249,66632.0,66631.0,0.002]
[1722311511234,1.80496715,66632.0,66631.0,0.002]
[1722311511429,1.81409504,66632.0,66631.0,0.002]
[1722311511829,1.79046133,66632.0,66631.0,0.002]
[1722311512842,1.78046133,66632.0,66631.0,0.002]
[1722311513706,1.44224708,66632.0,66631.0,0.1489]
[1722311513837,1.41584751,66632.0,66631.0,0.1489]
[1722311514023,1.5056058,66632.0,66631.0,0.1489]
[1722311514578,1.41584751,66632.0,66631.0,0.1489]
[1722311514776,1.56654183,66632.0,66631.0,0.1489]
[1722311514980,1.52504998,66632.0,66631.0,0.1489]
[1722311515180,1.63726364,66632.0,66631.0,0.1489]
[1722311515622,1.54881157,66632.0,66631.0,0.1489]
[1722311515820,1.53881157,66632.0,66631.0,0.1489]
[1722311516486,1.56235588,66632.0,66631.0,0.1489]
[1722311518346,1.56245215,66632.0,66631.0,0.1489]
[1722311518737,1.56245214,66632.0,66631.0,0.1489]
[1722311520625,1.69720701,66632.0,66631.0,0.1489]
[1722311521026,1.56253841,66632.0,66631.0,0.1489]
[1722311521253,1.69731125,66632.0,66631.0,0.1489]
[1722311521622,1.67376694,66632.0,66631.0,0.1489]
[1722311523519,1.5389941,66632.0,66631.0,0.1489]
[1722311523855,1.5389399,66632.0,66631.0,0.1489]
[1722311525078,1.26115685,66632.0,66631.0,0.1489]
[1722311525408,0.67156454,66632.0,66631.0,0.1489]
[1722311525548,0.78867073,66632.0,66631.0,0.1489]
[1722311526646,0.87447073,66632.0,66631.0,0.1489]
[1722311527173,0.88818337,66632.0,66631.0,0.1489]
[1722311527380,0.99240465,66632.0,66631.0,0.1489]
[1722311528464,0.99240465,66632.0,66631.0,0.149813]
[1722311528655,1.01594846,66632.0,66631.0,0.149813]
[1722311529682,0.99240465,66632.0,66631.0,0.149813]
[1722311529906,1.63328569,66632.0,66631.0,0.002913]
[1722311530120,1.75328569,66632.0,66631.0,0.002913]
[1722311530323,2.05675734,66632.0,66631.0,0.002913]
[1722311530525,1.904987,66632.0,66631.0,0.002913]
[1722311530995,1.9049874,66632.0,66631.0,0.002913]
[1722311531202,2.34102319,66632.0,66631.0,0.002913]
[1722311531415,2.10089919,66632.0,66631.0,0.002913]
[1722311532042,2.0507874,66632.0,66631.0,0.002913]
[1722311532733,2.0507874,66632.0,66631.0,0.063313]
[1722311532734,1.68544833,66632.0,66631.0,0.063313]
[1722311532952,1.77124833,66632.0,66631.0,0.063313]
[1722311533169,1.79479416,66632.0,66631.0,0.063313]
[1722311533627,1.79514605,66632.0,66631.0,0.063313]
[1722311533846,1.86004037,66632.0,66631.0,0.063313]
[1722311534068,1.94584037,66632.0,66631.0,0.063313]
[1722311534418,1.95584037,66632.0,66631.0,0.063313]
[1722311534624,1.94584037,66632.0,66631.0,0.063313]
[1722311535215,1.95584037,66632.0,66631.0,0.063313]
[1722311536505,1.94584037,66632.0,66631.0,0.063313]
[1722311536710,1.70571637,66632.0,66631.0,0.139113]
[1722311536921,1.85762134,66632.0,66631.0,0.139113]
[1722311537138,1.85760713,66632.0,66631.0,0.139113]
[1722311537331,1.8340613,66632.0,66631.0,0.139113]
[1722311537538,1.59648869,66632.0,66631.0,0.139113]
[1722311537751,0.90314657,66632.0,66631.0,0.139113]
[1722311538759,0.91221952,66632.0,66631.0,0.139113]
[1722311539696,0.93576379,66632.0,66631.0,0.139113]
[1722311540217,0.93576696,66632.0,66631.0,0.139113]
[1722311541581,1.07812408,66632.0,66631.0,0.139113]
[1722311543090,0.22097189,66632.0,66631.0,0.139113]
[1722311543661,0.34103389,66632.0,66631.0,0.139113]
[1722311543823,0.33341232,66632.0,66631.0,0.139113]
[1722311544026,0.45347432,66632.0,66631.0,0.139113]
[1722311544552,0.44347432,66632.0,66631.0,0.138113]
[1722311544953,0.68359832,66632.0,66631.0,0.138113]
[1722311545170,0.44347432,66632.0,66631.0,0.138113]
[1722311545371,0.32841232,66632.0,66631.0,0.138113]
[1722311545573,0.19242762,66632.0,66631.0,0.138113]
[1722311545773,0.18142762,66632.0,66631.0,0.137113]
[1722311545974,0.30148962,66632.0,66631.0,0.137113]
[1722311546272,0.30448962,66632.0,66631.0,0.139113]
[1722311546780,0.25187277,66632.0,66631.0,0.139113]
[1722311546977,0.18442762,66632.0,66631.0,0.139113]
[1722311547177,0.25186371,66632.0,66631.0,0.139113]
[1722311547588,0.18442762,66632.0,66631.0,0.139113]
[1722311548350,0.37192571,66632.0,66631.0,0.139113]
[1722311548988,0.3280328,66632.0,66631.0,0.139113]
[1722311549290,0.37190737,66632.0,66631.0,0.139113]
[1722311549466,0.30448962,66632.0,66631.0,0.139113]
[1722311550271,0.18442762,66632.0,66631.0,0.139113]
[1722311550479,0.05669323,66632.0,66631.0,0.49561004]
[1722311550676,0.05669323,66632.0,66631.0,0.75873804]
[1722311550877,0.05669323,66632.0,66631.0,1.12356453]
[1722311551259,0.07723338,66632.0,66631.0,1.12356453]
[1722311551661,0.07723338,66632.0,66631.0,1.12456453]
[1722311551860,0.07723338,66632.0,66631.0,1.13456453]
[1722311551861,0.07823338,66632.0,66631.0,1.13456453]
[1722311552063,0.07823338,66632.0,66631.0,1.13156453]
[1722311552507,0.07923338,66632.0,66631.0,1.13956453]
[1722311553155,0.07923338,66632.0,66631.0,1.1395523]
[1722311553465,0.07823338,66632.0,66631.0,1.1295523]
[1722311553614,0.07923338,66632.0,66631.0,1.1415523]
[1722311554481,0.02554015,66632.0,66631.0,1.1415523]
[1722311555150,0.02554015,66632.0,66631.0,1.0557523]
[1722311556372,0.02554015,66632.0,66631.0,0.93106604]
[1722311556546,0.02554015,66632.0,66631.0,1.05575262]
[1722311556748,0.002,66632.0,66631.0,1.05575262]
[1722311556951,0.002,66632.0,66631.0,0.81562645]
[1722311557273,0.002,66632.0,66631.0,0.69093804]
[1722311557473,0.06188479,66632.0,66631.0,0.69093804]
[1722311559943,0.085425,66632.0,66631.0,0.69093804]
[1722311560485,0.06188479,66632.0,66631.0,0.69093804]
[1722311563817,0.08542504,66632.0,66631.0,0.69093804]
[1722311563969,0.06188479,66632.0,66631.0,0.69093804]
[1722311566202,0.06188479,66632.0,66631.0,0.81563166]
[1722311566477,0.06188479,66632.0,66631.0,0.69093804]
[1722311566807,0.06188479,66632.0,66631.0,0.81563197]
[1722311570238,0.06188479,66632.0,66631.0,0.81563336]
[1722311570865,0.08542507,66632.0,66631.0,0.81563336]
[1722311571831,0.08542507,66632.0,66631.0,0.69093804]
[1722311572022,0.04488466,66649.0,66632.0,0.0637]
[1722311572171,0.120054,66637.0,66632.0,0.183762]
[1722311572375,0.01169009,66636.0,66632.0,0.183762]
[1722311572625,0.13174509,66636.0,66632.0,0.183762]
[1722311572830,0.01169009,66635.0,66632.0,0.183762]
[1722311573003,0.120053,66638.0,66632.0,0.183762]
[1722311573004,0.01169009,66634.0,66632.0,0.183762]
[1722311573212,0.12005,66639.0,66634.0,0.0653]
[1722311573413,0.01174338,66638.0,66637.0,0.00105172]
[1722311573615,0.120048,66640.0,66637.0,0.00105172]
[1722311573840,0.01174338,66639.0,66637.0,0.00105172]
[1722311574092,0.01174338,66638.0,66637.0,0.00105172]
[1722311574293,0.01174338,66640.0,66637.0,0.06445172]
[1722311574497,0.01174338,66640.0,66639.0,0.600247]
[1722311574698,0.4684,66644.0,66642.0,0.0816]
[1722311574993,0.4684,66644.0,66643.0,0.0676542]
[1722311575234,0.4859026,66644.0,66643.0,0.19232832]
[1722311575400,0.4859026,66644.0,66643.0,0.31237032]
[1722311575614,0.4859026,66644.0,66643.0,0.19232832]
[1722311575957,0.4859026,66644.0,66643.0,1.01817336]
[1722311575958,0.0175026,66644.0,66643.0,1.01817336]
[1722311576155,0.0175026,66644.0,66643.0,0.79953131]
[1722311576561,0.0175026,66644.0,66643.0,1.03961631]
[1722311576562,0.0225026,66644.0,66643.0,1.03961631]
[1722311577575,0.0225026,66644.0,66643.0,1.04117051]
[1722311578202,0.005,66644.0,66643.0,1.03961631]
[1722311578384,0.005,66644.0,66643.0,1.27970131]
[1722311578918,0.46923,66659.0,66656.0,0.267619]
[1722311579149,0.02124887,66658.0,66656.0,0.267619]
[1722311579286,0.02124887,66658.0,66657.0,0.360051]
[1722311580021,0.04478224,66658.0,66657.0,0.78992766]
[1722311580223,0.02353337,66658.0,66657.0,0.86752766]
[1722311580628,0.02353337,66658.0,66657.0,0.62749366]
[1722311580629,0.01908012,66658.0,66657.0,0.62749366]
[1722311580808,0.01908012,66658.0,66657.0,0.6274959]
[1722311581408,0.01908012,66658.0,66657.0,0.502851]
[1722311581658,0.01908012,66658.0,66657.0,0.1428]
[1722311582121,0.01908012,66658.0,66657.0,0.1438]
[1722311582122,0.02908012,66658.0,66657.0,0.1438]
[1722311582455,0.1304544,66658.0,66657.0,0.1508]
[1722311582905,0.2504704,66658.0,66657.0,0.007]
[1722311583101,0.1304544,66658.0,66657.0,0.007]
[1722311583338,0.1304544,66658.0,66653.0,0.120024]
[1722311583339,0.1294544,66658.0,66653.0,0.120024]
[1722311583514,0.1294544,66658.0,66657.0,0.006]
[1722311583719,0.2494694,66658.0,66657.0,0.006]
[1722311584016,0.2494694,66658.0,66657.0,0.008]
[1722311584214,0.27300293,66658.0,66657.0,0.008]
[1722311585157,0.26912761,66658.0,66657.0,0.006]
[1722311585360,0.15856821,66658.0,66657.0,0.006]
[1722311585581,0.03855321,66658.0,66657.0,0.006]
[1722311587944,0.01501968,66658.0,66657.0,0.006]
[1722311588757,0.13503468,66658.0,66657.0,0.006]
[1722311590761,0.15856825,66658.0,66657.0,0.006]
[1722311590967,0.03855325,66658.0,66657.0,0.006]
[1722311592139,0.01501968,66658.0,66657.0,0.006]
[1722311592804,0.01584968,66658.0,66657.0,0.006]
[1722311593326,0.13586468,66658.0,66657.0,0.006]
[1722311593848,0.01584968,66658.0,66657.0,0.006]
[1722311594493,0.13586468,66658.0,66657.0,0.006]
[1722311594926,0.01584968,66658.0,66657.0,0.006]
[1722311595518,0.13586468,66658.0,66657.0,0.006]
[1722311596771,0.01584968,66658.0,66657.0,0.006]
[1722311596975,0.03938325,66658.0,66657.0,0.1453]
[1722311597212,0.01584968,66658.0,66657.0,0.1453]
[1722311599579,0.03938311,66658.0,66657.0,0.1453]
[1722311599959,0.01584968,66658.0,66657.0,0.1453]
[1722311600833,0.01584968,66658.0,66657.0,0.1473]
[1722311601029,0.13586468,66658.0,66657.0,0.1473]
[1722311602596,0.12728855,66658.0,66657.0,0.1473]
[1722311603272,0.15082198,66658.0,66657.0,0.1473]
[1722311604445,0.12728855,66658.0,66657.0,0.1473]
[1722311605809,0.12728855,66658.0,66657.0,0.27195651]
[1722311607805,0.15082197,66658.0,66657.0,0.27195651]
[1722311608249,0.12728855,66658.0,66657.0,0.27195651]
[1722311609637,0.12728855,66658.0,66657.0,0.19415651]
[1722311610077,0.24730355,66658.0,66657.0,0.19415651]
[1722311610302,0.24730355,66658.0,66657.0,0.19415661]
[1722311611387,0.27083733,66658.0,66657.0,0.19415661]
[1722311612020,0.15082233,66658.0,66657.0,0.19415661]
[1722311613413,0.12728855,66658.0,66657.0,0.19415661]
[1722311615077,0.24730355,66658.0,66657.0,0.19415661]
[1722311616684,0.29224672,66658.0,66657.0,0.19415661]
[1722311617580,0.24730355,66658.0,66657.0,0.19415661]
[1722311617766,0.24730355,66658.0,66657.0,0.19415662]
[1722311618697,0.31478543,66658.0,66657.0,0.19415662]
[1722311619343,0.19477043,66658.0,66657.0,0.19415662]
[1722311619690,0.21726439,66658.0,66657.0,0.19415662]
[1722311620570,0.12728855,66658.0,66657.0,0.19415662]
[1722311620786,0.26329213,66658.0,66657.0,0.19415662]
[1722311621019,0.26343792,66658.0,66657.0,0.0695]
[1722311621235,0.26343792,66658.0,66657.0,0.19415662]
[1722311621453,0.15082233,66658.0,66657.0,0.0695]
[1722311621670,0.15082233,66658.0,66657.0,0.19415662]
[1722311621902,0.27083733,66658.0,66657.0,0.19415662]
[1722311625299,0.24730355,66658.0,66657.0,0.19415662]
[1722311626131,0.24730355,66658.0,66657.0,0.13265662]
[1722311627632,0.24730355,66658.0,66657.0,0.13265661]
[1722311628558,0.27083736,66658.0,66657.0,0.13265661]
[1722311629070,0.24730355,66658.0,66657.0,0.13265661]
[1722311630718,0.24730355,66658.0,66657.0,0.008]
[1722311631085,0.24730355,66658.0,66657.0,0.13265662]
[1722311631833,0.2708374,66658.0,66657.0,0.13265662]
[1722311634747,0.2708374,66658.0,66657.0,0.13265659]
[1722311636346,0.2708374,66658.0,66657.0,0.008]
[1722311636552,0.2708374,66658.0,66657.0,0.13265659]
[1722311637615,0.2708374,66658.0,66657.0,0.008]
[1722311637823,0.2708374,66658.0,66657.0,0.13265659]
[1722311641776,0.27729177,66658.0,66657.0,0.13265659]
[1722311645605,0.51732277,66658.0,66657.0,0.13265659]
[1722311646061,0.49378892,66658.0,66657.0,0.13265659]
[1722311646496,0.49378892,66658.0,66657.0,0.008]
[1722311646733,0.49378892,66658.0,66657.0,0.13265884]
[1722311648782,0.25375792,66658.0,66657.0,0.27245884]
[1722311649219,0.157277,66658.0,66657.0,0.27245884]
[1722311649654,0.24644129,66658.0,66657.0,0.39247584]
[1722311649899,0.02092938,66658.0,66657.0,1.04617688]
[1722311650106,0.02092938,66658.0,66657.0,1.47314611]
[1722311650311,0.00083,66658.0,66657.0,1.47314611]
[1722311650516,0.00083,66658.0,66657.0,1.51817895]
[1722311650718,0.00083,66658.0,66657.0,1.47314611]
[1722311651279,0.00083,66658.0,66657.0,1.47114611]
[1722311651490,0.00183,66658.0,66657.0,1.47514611]
[1722311651897,0.00183,66658.0,66657.0,1.52768424]
[1722311652279,0.00183,66658.0,66657.0,1.04816667]
[1722311652694,0.00083,66658.0,66657.0,1.03816667]
[1722311652863,0.04254172,66658.0,66657.0,1.05216667]
[1722311653076,0.04254172,66658.0,66657.0,1.05215764]
[1722311654108,0.04254172,66658.0,66657.0,1.05115764]
[1722311654676,0.01901253,66658.0,66657.0,1.04215764]
[1722311655293,0.01901253,66658.0,66657.0,0.44207264]
[1722311655855,0.01901253,66658.0,66657.0,0.56208964]
[1722311656281,0.01901253,66658.0,66657.0,0.56209796]
[1722311656910,0.01901253,66658.0,66657.0,0.1712]
[1722311657116,0.06401065,66658.0,66657.0,0.1712]
[1722311658556,0.06401065,66658.0,66657.0,0.027]
[1722311658557,0.01901253,66658.0,66657.0,0.027]
[1722311658983,0.08650972,66658.0,66657.0,0.027]
[1722311659393,0.11004091,66658.0,66657.0,0.027]
[1722311659595,0.01901253,66658.0,66657.0,0.027]
[1722311659799,0.08651357,66658.0,66657.0,0.027]
[1722311660027,0.31838095,66658.0,66657.0,0.027]
[1722311660246,0.31838276,66658.0,66657.0,0.027]
[1722311661055,0.31838276,66658.0,66657.0,0.013]
[1722311661855,0.19836776,66658.0,66657.0,0.013]
[1722311662108,0.20653038,66658.0,66657.0,0.013]
[1722311662333,0.34209885,66658.0,66657.0,0.013]
[1722311662960,0.34209919,66658.0,66657.0,0.013]
[1722311663548,0.55859873,66658.0,66657.0,0.013]
[1722311665498,0.31856773,66658.0,66657.0,0.013]
[1722311665654,0.13902753,66658.0,66657.0,0.013]
[1722311665855,0.44656172,66658.0,66657.0,0.013]
[1722311666061,0.55821145,66658.0,66657.0,0.013]
[1722311667131,0.120019,66657.0,66653.0,0.075]
[1722311667465,0.01718253,66656.0,66653.0,0.075]
[1722311667638,0.01718253,66655.0,66654.0,0.12465823]
[1722311668851,0.01718253,66655.0,66654.0,0.12865823]
[1722311669653,0.01718253,66655.0,66654.0,0.004]
[1722311669865,0.01718253,66655.0,66654.0,0.12865814]
[1722311670690,0.01718253,66655.0,66654.0,0.31368014]
[1722311670848,0.01718253,66655.0,66654.0,0.63562514]
[1722311671298,0.04071448,66655.0,66654.0,0.63562514]
[1722311672261,0.01718253,66655.0,66654.0,0.63562514]
[1722311672993,0.01718253,66655.0,66654.0,0.63561716]
[1722311673210,0.01818253,66655.0,66654.0,0.64361716]
[1722311673571,0.01818253,66655.0,66654.0,0.64361715]
[1722311674051,0.01818253,66655.0,66654.0,0.88366215]
[1722311675062,0.01818253,66655.0,66654.0,0.759012]
[1722311675292,0.01818253,66655.0,66654.0,0.88366204]
[1722311675723,0.04171417,66655.0,66654.0,0.88366204]
[1722311676377,0.04171417,66655.0,66654.0,0.88365784]
[1722311678130,0.01818253,66655.0,66654.0,0.88365784]
[1722311679664,0.01818253,66655.0,66654.0,0.759012]
[1722311679858,0.01818253,66655.0,66654.0,0.88365871]
[1722311681210,0.04171417,66655.0,66654.0,0.88365871]
[1722311682951,0.04171417,66655.0,66654.0,0.88365861]
[1722311683485,0.01818253,66655.0,66654.0,0.88365861]
[1722311685836,0.01818253,66655.0,66654.0,0.64361361]
[1722311686276,0.01818253,66655.0,66654.0,0.88366499]
[1722311687240,0.01818253,66655.0,66654.0,0.64361999]
[1722311687465,0.01818253,66655.0,66654.0,0.88366499]
[1722311688355,0.01818253,66655.0,66654.0,0.759012]
[1722311688557,0.01818253,66655.0,66654.0,0.88366]
[1722311690100,0.04171422,66655.0,66654.0,0.88366]
[1722311690765,0.04171422,66655.0,66654.0,1.27433804]
[1722311691182,0.04171422,66655.0,66654.0,1.53689275]
[1722311691183,0.01818253,66655.0,66654.0,1.53689275]
[1722311691562,0.01818253,66655.0,66654.0,1.53688887]
[1722311691563,0.02243021,66655.0,66654.0,1.53688887]
[1722311691773,0.02243021,66655.0,66654.0,1.53688625]
[1722311692119,0.02243021,66655.0,66654.0,1.48429224]
[1722311692346,0.02243021,66655.0,66654.0,1.29733804]
[1722311692950,0.02243021,66655.0,66654.0,1.29732937]
[1722311693137,0.02243021,66655.0,66654.0,1.53688088]
[1722311693518,0.02243021,66655.0,66654.0,1.29732937]
[1722311693966,0.02243021,66655.0,66654.0,1.53687868]
[1722311694204,0.02243021,66655.0,66654.0,1.48428445]
[1722311694408,0.04596081,66655.0,66654.0,1.48428445]
[1722311695516,0.02243021,66655.0,66654.0,1.48428445]
[1722311696208,0.02243021,66655.0,66654.0,1.48427522]
[1722311697404,0.02243021,66655.0,66654.0,1.52885068]
[1722311697405,0.02143021,66655.0,66654.0,1.52885068]
[1722311697845,0.02143021,66655.0,66654.0,1.28932411]
[1722311698620,0.04496105,66655.0,66654.0,1.28932411]
[1722311699157,0.04496105,66655.0,66654.0,1.28532411]
[1722311699392,0.04496105,66655.0,66654.0,1.16069004]
[1722311699601,0.04496105,66655.0,66654.0,1.2853304]
[1722311700467,0.04596105,66655.0,66654.0,1.2933304]
[1722311700863,0.04496105,66655.0,66654.0,1.2853304]
[1722311701454,0.04496105,66655.0,66654.0,1.2993304]
[1722311701831,0.04496105,66655.0,66654.0,1.29933184]
[1722311702249,0.04432299,66655.0,66654.0,1.29933184]
[1722311702493,0.04432299,66655.0,66654.0,0.7387538]
[1722311703189,0.02079215,66655.0,66654.0,0.7387538]
[1722311703381,0.04583931,66658.0,66655.0,0.240042]
[1722311703605,0.04583931,66658.0,66657.0,0.360051]
[1722311703807,0.06256518,66658.0,66657.0,0.4846928]
[1722311704781,0.01755587,66658.0,66657.0,0.360051]
[1722311704981,0.06256868,66658.0,66657.0,0.4847026]
[1722311705368,0.06256868,66658.0,66657.0,0.7247366]
[1722311705563,0.06356868,66658.0,66657.0,0.7367366]
[1722311706800,0.06356868,66658.0,66657.0,0.4967026]
[1722311708089,0.06356868,66658.0,66657.0,0.372051]
[1722311708303,0.06357147,66658.0,66657.0,0.4967026]
[1722311708633,0.01855587,66658.0,66657.0,0.4967026]
[1722311709040,0.01855587,66658.0,66657.0,0.7367366]
[1722311709443,0.0635727,66658.0,66657.0,0.7367366]
[1722311709659,0.01855587,66658.0,66657.0,0.7367366]
[1722311710620,0.01855587,66658.0,66657.0,0.4967026]
[1722311710759,0.78796366,66658.0,66657.0,0.1366516]
[1722311710958,0.87502078,66658.0,66657.0,0.024]
[1722311711159,1.26568482,66658.0,66657.0,0.024]
[1722311711696,1.04695497,66658.0,66657.0,0.012]
[1722311711904,0.94259322,66658.0,66657.0,0.012]
[1722311712078,0.94259322,66658.0,66657.0,0.016]
[1722311712079,0.39495878,66658.0,66657.0,0.016]
[1722311712282,0.77000723,66658.0,66657.0,0.012]
[1722311712686,0.63498978,66658.0,66657.0,0.012]
[1722311715960,0.120019,66656.0,66651.0,0.120028]
[1722311716162,0.08996343,66653.0,66651.0,0.120028]
[1722311716419,0.12560722,66652.0,66651.0,0.120028]
[1722311716665,0.08419198,66652.0,66651.0,0.120028]
[1722311717195,0.12581319,66652.0,66651.0,0.120028]
[1722311717486,0.12581319,66652.0,66651.0,0.125028]
[1722311717487,0.21577662,66652.0,66651.0,0.125028]
[1722311717820,0.2157329,66652.0,66651.0,0.125028]
[1722311718271,0.12581319,66652.0,66651.0,0.125028]
[1722311718478,0.12581319,66652.0,66651.0,0.131028]
[1722311718479,0.2392675,66652.0,66651.0,0.131028]
[1722311718883,0.2392675,66652.0,66651.0,0.005]
[1722311719086,0.2392675,66652.0,66651.0,0.012]
[1722311719627,0.2392675,66652.0,66651.0,0.007]
[1722311719836,0.2157329,66652.0,66651.0,0.007]
[1722311720270,0.12581319,66652.0,66651.0,0.007]
[1722311720473,0.08414535,66652.0,66651.0,0.007]
[1722311720693,0.08414535,66652.0,66651.0,0.127028]
[1722311721107,0.01772587,66652.0,66651.0,0.134028]
[1722311721327,0.08514298,66652.0,66651.0,0.134028]
[1722311721530,0.01772587,66652.0,66651.0,0.134028]
[1722311722932,0.06266322,66652.0,66651.0,0.134028]
[1722311723495,0.01772587,66652.0,66651.0,0.75494]
[1722311723868,0.01772587,66652.0,66651.0,1.14562904]
[1722311724299,0.01772587,66652.0,66651.0,1.27028498]
[1722311724955,0.01772587,66652.0,66651.0,1.27028465]
[1722311727228,0.04125797,66652.0,66651.0,1.27028465]
[1722311727455,0.04125797,66652.0,66651.0,1.14562904]
[1722311727719,0.04125797,66652.0,66651.0,1.27028465]
[1722311728440,0.01772587,66652.0,66651.0,1.27028465]
[1722311731095,0.01772587,66652.0,66651.0,1.27028468]
[1722311731454,0.04125801,66652.0,66651.0,1.27028468]
[1722311731649,0.01772587,66652.0,66651.0,1.27028468]
[1722311733811,0.01327486,66652.0,66651.0,1.27028468]
[1722311734196,0.01327486,66652.0,66651.0,1.27028364]
[1722311734538,0.03680717,66652.0,66651.0,1.27028364]
[1722311735968,0.03680717,66652.0,66651.0,1.35608364]
[1722311736287,0.01327486,66652.0,66651.0,1.11602764]
[1722311736690,0.01327486,66652.0,66651.0,1.03022764]
[1722311737553,0.01327486,66652.0,66651.0,0.90557304]
[1722311737760,0.01327486,66652.0,66651.0,1.03023493]
[1722311738159,0.01327486,66652.0,66651.0,1.03023513]
[1722311738815,0.01327486,66652.0,66651.0,0.014]
[1722311738816,0.15397486,66652.0,66651.0,0.014]
[1722311739145,0.1775072,66652.0,66651.0,0.014]
[1722311739753,0.15397486,66652.0,66651.0,0.014]
[1722311740771,0.09207486,66652.0,66651.0,0.134028]
[1722311740969,0.01327486,66652.0,66651.0,0.134028]
[1722311741214,0.01327486,66652.0,66651.0,0.014]
[1722311741989,0.01327486,66652.0,66651.0,0.134028]
[1722311742390,0.01327486,66652.0,66651.0,0.25869092]
[1722311742576,0.01327486,66652.0,66651.0,0.134028]
[1722311742794,0.01327486,66652.0,66651.0,0.25869098]
[1722311743484,0.01327486,66652.0,66651.0,0.134028]
[1722311743685,0.01327486,66652.0,66651.0,0.25868929]
[1722311744083,0.01327486,66652.0,66651.0,0.014]
[1722311744351,0.01327486,66652.0,66651.0,0.13866217]
[1722311744537,0.01327486,66652.0,66651.0,0.13866097]
[1722311746719,0.03680811,66652.0,66651.0,0.13866097]
[1722311746899,0.01327486,66652.0,66651.0,0.25868897]
[1722311750207,0.03680811,66652.0,66651.0,0.82460097]
[1722311750411,0.03680811,66652.0,66651.0,1.11823401]
[1722311750764,0.03680811,66652.0,66651.0,1.11823156]
[1722311750969,0.01327486,66652.0,66651.0,1.11823158]
[1722311751344,0.01327486,66652.0,66651.0,1.11823058]
[1722311752410,0.01410486,66652.0,66651.0,1.11823058]
[1722311753185,0.01410486,66652.0,66651.0,1.11823389]
[1722311754151,0.01410486,66652.0,66651.0,1.1182293]
[1722311754354,0.03763731,66652.0,66651.0,1.1182293]
[1722311755351,0.16668434,66652.0,66651.0,1.1182293]
[1722311755651,0.16668434,66652.0,66651.0,1.0324293]
[1722311756316,0.12170075,66652.0,66651.0,1.0324293]
[1722311758593,0.14523373,66652.0,66651.0,1.0324293]
[1722311759029,0.12170075,66652.0,66651.0,1.0324293]
[1722311759354,0.18919778,66652.0,66651.0,1.0324293]
[1722311760775,0.189211,66652.0,66651.0,1.03243749]
[1722311761190,0.16670986,66652.0,66651.0,1.03243749]
[1722311761379,0.16671047,66652.0,66651.0,1.03243749]
[1722311761555,0.12170075,66652.0,66651.0,1.03243749]
[1722311761955,0.189211,66652.0,66651.0,1.03243749]
[1722311762155,0.21274398,66652.0,66651.0,1.03243749]
[1722311762966,0.14523373,66652.0,66651.0,0.79238149]
[1722311763146,0.21275264,66652.0,66651.0,0.79238142]
[1722311763369,0.14523373,66652.0,66651.0,0.79238142]
[1722311763579,0.12170075,66652.0,66651.0,0.79238142]
[1722311763782,0.05912026,66652.0,66651.0,0.79238142]
[1722311764034,0.01410486,66652.0,66651.0,0.79238142]
[1722311765198,0.01410486,66652.0,66651.0,0.79237475]
[1722311765398,0.05913226,66652.0,66651.0,0.79237475]
[1722311766419,0.05914055,66652.0,66651.0,0.66771704]
[1722311766621,0.05914055,66652.0,66651.0,0.79237475]
[1722311766948,0.08267333,66652.0,66651.0,0.79237475]
[1722311767299,0.01410486,66652.0,66651.0,0.79237475]
[1722311767503,0.12225981,66652.0,66651.0,0.79237475]
[1722311767701,0.18981335,66652.0,66651.0,0.79237475]
[1722311767901,0.12225981,66652.0,66651.0,0.79237475]
[1722311768322,0.2123312,66652.0,66651.0,0.79237475]
[1722311769869,0.21236178,66652.0,66651.0,1.03243734]
[1722311770079,0.12225981,66652.0,66651.0,0.79238134]
[1722311770391,0.01410486,66652.0,66651.0,1.05543734]
[1722311770608,0.03763755,66652.0,66651.0,1.05543734]
[1722311771403,0.03763755,66652.0,66651.0,1.04843734]
[1722311771610,0.01410486,66652.0,66651.0,1.04843734]
[1722311771805,0.01410486,66652.0,66651.0,1.05643734]
[1722311772849,0.01410486,66652.0,66651.0,1.04843734]
[1722311773050,0.01410486,66652.0,66651.0,1.04842291]
[1722311774081,0.01410486,66652.0,66651.0,1.28847891]
[1722311774357,0.01410486,66652.0,66651.0,1.48847891]
[1722311774488,0.00183,66652.0,66651.0,2.02549963]
[1722311775070,0.02535956,66652.0,66651.0,2.02549963]
[1722311775269,0.00183,66652.0,66651.0,2.02549963]
[1722311775651,0.00083,66652.0,66651.0,1.79144363]
[1722311775848,0.00083,66652.0,66651.0,1.78444363]
[1722311776369,0.00083,66652.0,66651.0,1.79240985]
[1722311776740,0.00083,66652.0,66651.0,1.49482904]
[1722311776944,0.00083,66652.0,66651.0,1.8064109]
[1722311777715,0.00083,66652.0,66651.0,1.81546711]
[1722311777963,0.00083,66652.0,66651.0,2.05552311]
[1722311778164,0.00083,66652.0,66651.0,2.10810555]
[1722311778372,0.00083,66652.0,66651.0,1.62851799]
[1722311778626,0.02435966,66652.0,66651.0,1.62852455]
[1722311778989,0.00083,66652.0,66651.0,1.62852455]
[1722311779376,0.00083,66652.0,66651.0,1.50388525]
[1722311779574,0.00083,66652.0,66651.0,1.62852484]
[1722311781814,0.02435966,66652.0,66651.0,1.62852484]
[1722311782670,0.02435966,66652.0,66651.0,1.62852485]
[1722311787143,0.02435966,66652.0,66651.0,1.41852485]
[1722311787405,0.02435966,66652.0,66651.0,1.24126885]
[1722311787613,0.03902711,66652.0,66651.0,1.24126885]
[1722311788925,0.03902711,66652.0,66651.0,1.26426885]
[1722311789415,0.03902711,66652.0,66651.0,1.13962925]